fUSD/lending_fUSD_20251001
["ID","MTS","AMOUNT","RATE_DAILY","PERIOD"]
[388691635,1759319460096,-503.79444075,0.00022191,2]
[388691636,1759319460107,-8044.84,0.00022191,2]
[388691637,1759319460118,-6701.36,0.00022191,2]
[388691638,1759319460133,-500.0,0.00022191,2]
[388691639,1759319460143,-525.16728934,0.00022191,2]
[388691640,1759319460153,-1148.38,0.00022191,2]
[388691641,1759319460163,-500.0,0.00022191,2]
[388691642,1759319460172,-957.62,0.00022191,2]
[388691643,1759319460182,-3289.07,0.00022191,2]
[388691644,1759319460192,-788.71,0.00022191,2]
[388691645,1759319460202,-500.0,0.00022191,2]
[388691646,1759319460211,-800.23,0.00022191,2]
[388691647,1759319460221,-725.95,0.00022191,2]
[388691648,1759319460231,-1786.34,0.00022191,2]
[388691649,1759319460240,-2284.3,0.00022191,2]
[388691650,1759319460250,-500.0,0.00022191,2]
[388691651,1759319460259,-8738.24,0.00022191,2]
[388691652,1759319460269,-3919.54,0.00022191,2]
[388691653,1759319460279,-500.0,0.00022191,2]
[388691654,1759319460288,-595.45,0.00022191,2]
[388691655,1759319460297,-500.0,0.00022191,2]
[388691656,1759319460307,-1654.64,0.00022191,2]
[388691657,1759319460317,-1859.36,0.00022191,2]
[388691658,1759319460326,-8415.92,0.00022191,2]
[388691659,1759319460336,-5575.58,0.00022191,2]
[388691660,1759319460346,-1893.77,0.00022191,2]
[388691661,1759319460356,-500.0,0.00022191,2]
[388691662,1759319460366,-2114.87,0.00022191,2]
[388691663,1759319460375,-2943.53,0.00022191,2]
[388691664,1759319460385,-505.83,0.00022191,2]
[388691665,1759319460395,-500.0,0.00022191,2]
[388691666,1759319460404,-500.0,0.00022191,2]
[388691667,1759319460545,-11531.05,0.00022191,2]
[388691668,1759319460554,-489.93031833,0.00022191,2]
[388691669,1759319460563,-2485.41,0.00022191,2]
[388691670,1759319460573,-3878.73,0.00022191,2]
[388691671,1759319460583,-13397.64,0.00022191,2]
[388691672,1759319460592,-2136.81,0.00022191,2]
[388691673,1759319460601,-4521.92,0.00022191,2]
[388691674,1759319460611,-939.71,0.00022191,2]
[388691675,1759319460621,-3416.56,0.00022191,2]
[388691676,1759319460631,-500.0,0.00022191,2]
[388691677,1759319460639,-500.0,0.00022191,2]
[388691678,1759319460648,-500.0,0.00022191,2]
[388691679,1759319460658,-4481.01,0.00022191,2]
[388691680,1759319460667,-3797.95,0.00022191,2]
[388691681,1759319460678,-2666.04,0.00022191,2]
[388691682,1759319460687,-500.0,0.00022191,2]
[388691683,1759319460696,-1471.04,0.00022191,2]
[388691684,1759319460705,-4449.4,0.00022191,2]
[388691685,1759319460715,-2253.48,0.00022191,2]
[388691686,1759319460724,-2811.79,0.00022191,2]
[388691687,1759319460733,-500.0,0.00022191,2]
[388691688,1759319460743,-6273.8,0.00022191,2]
[388691689,1759319460752,-500.0,0.00022191,2]
[388691690,1759319460761,-1183.84,0.00022191,2]
[388691691,1759319460770,-2988.41,0.00022191,2]
[388691692,1759319460780,-1228.53,0.00022191,2]
[388691693,1759319460790,-3350.64,0.00022191,2]
[388691694,1759319460799,-2300.54,0.00022191,2]
[388691695,1759319460808,-500.0,0.00022191,2]
[388691696,1759319460818,-3003.42,0.00022191,2]
[388691697,1759319460828,-2064.83,0.00022191,2]
[388691698,1759319460837,-3213.11,0.00022191,2]
[388691699,1759319460847,-500.0,0.00022191,2]
[388691700,1759319460856,-528.98,0.00022191,2]
[388691701,1759319460866,-7096.47,0.00022191,2]
[388691702,1759319460875,-539.86,0.00022191,2]
[388691703,1759319460884,-6957.48,0.00022191,2]
[388691704,1759319460894,-2760.0,0.00022191,2]
[388691705,1759319460903,-500.0,0.00022191,2]
[388691706,1759319460912,-500.0,0.00022191,2]
[388691707,1759319460922,-500.0,0.00022191,2]
[388691708,1759319460932,-5888.48,0.00022191,2]
[388691709,1759319460941,-513.6,0.00022191,2]
[388691710,1759319460950,-500.0,0.00022191,2]
[388691711,1759319460959,-2219.37,0.00022191,2]
[388691712,1759319460968,-4377.4,0.00022191,2]
[388691713,1759319460977,-1837.24,0.00022191,2]
[388691714,1759319460986,-500.0,0.00022191,2]
[388691715,1759319460996,-596.42,0.00022191,2]
[388691716,1759319461005,-1843.46,0.00022191,2]
[388691717,1759319461014,-1144.53,0.00022191,2]
[388691718,1759319461023,-3433.03,0.00022191,2]
[388691719,1759319461032,-3412.43,0.00022191,2]
[388691720,1759319461042,-2523.3,0.00022191,2]
[388691721,1759319461051,-1361.29,0.00022191,2]
[388691722,1759319461061,-4852.22,0.00022191,2]
[388691723,1759319461070,-12748.14,0.00022191,2]
[388691724,1759319461079,-963.09,0.00022191,2]
[388691725,1759319461089,-536.61,0.00022191,2]
[388691726,1759319461099,-500.0,0.00022191,2]
[388691727,1759319461108,-2572.51,0.00022191,2]
[388691728,1759319461118,-732.06,0.00022191,2]
[388691729,1759319461129,-1345.51,0.00022191,2]
[388691730,1759319461138,-500.0,0.00022191,2]
[388691731,1759319461149,-2584.98,0.00022191,2]
[388691732,1759319461159,-2501.22,0.00022191,2]
[388691733,1759319461168,-2892.26,0.00022191,2]
[388691734,1759319461180,-793.98,0.00022191,2]
[388691735,1759319461190,-6702.42,0.00022191,2]
[388691736,1759319461200,-806.02,0.00022191,2]
[388691737,1759319461209,-500.0,0.00022191,2]
[388691738,1759319461218,-500.0,0.00022191,2]
[388691739,1759319461227,-879.64,0.00022191,2]
[388691740,1759319461236,-2597.32,0.00022191,2]
[388691741,1759319461246,-1997.34,0.00022191,2]
[388691742,1759319461255,-500.0,0.00022191,2]
[388691743,1759319461264,-670.84,0.00022191,2]
[388691744,1759319461274,-2182.2,0.00022191,2]
[388691745,1759319461282,-1394.19,0.00022191,2]
[388691746,1759319461292,-2739.44,0.00022191,2]
[388691747,1759319461301,-500.0,0.00022191,2]
[388691748,1759319461310,-500.0,0.00022191,2]
[388691749,1759319461319,-3480.5,0.00022191,2]
[388691750,1759319461328,-4643.05,0.00022191,2]
[388691751,1759319461337,-4234.0,0.00022191,2]
[388691752,1759319461346,-500.0,0.00022191,2]
[388691753,1759319461355,-500.0,0.00022191,2]
[388691754,1759319461364,-1392.25,0.00022191,2]
[388691755,1759319461374,-1661.15,0.00022191,2]
[388691756,1759319461383,-500.0,0.00022191,2]
[388691757,1759319461392,-500.0,0.00022191,2]
[388691758,1759319461401,-500.0,0.00022191,2]
[388691759,1759319461410,-500.0,0.00022191,2]
[388691760,1759319461421,-1127.7,0.00022191,2]
[388691761,1759319461431,-300.96,0.00022191,2]
[388691762,1759319461440,-1179.05,0.00022191,2]
[388691763,1759319461449,-2892.4,0.00022191,2]
[388691764,1759319461458,-324.01,0.00022191,2]
[388691765,1759319461467,-1420.0,0.000222,2]
[388691766,1759319461477,-583.27338522,0.00022212,2]
[388691767,1759319461487,-500.0,0.00022231,2]
[388691768,1759319461496,-500.0,0.00022233,2]
[388691769,1759319461506,-500.0,0.00022233,2]
[388691770,1759319461515,-500.0,0.00022235,2]
[388691771,1759319461525,-150.0,0.00022258,4]
[388691772,1759319461534,-465.38648799,0.00022275,2]
[388691773,1759319461544,-167.57,0.00022292,2]
[388691774,1759319461557,-412.56,0.00022292,2]
[388691775,1759319461567,-150.0,0.00022292,2]
[388691776,1759319461576,-1124.17,0.00022292,2]
[388691777,1759319461586,-300.0,0.00022292,2]
[388691778,1759319461596,-150.78,0.00022292,2]
[388691779,1759319461606,-153.34,0.00022292,2]
[388691780,1759319461617,-832.07,0.00022292,2]
[388691781,1759319461627,-150.32,0.00022292,2]
[388691782,1759319461636,-334.75,0.00022292,2]
[388691783,1759319461646,-243.0,0.000223,2]
[388691784,1759319461655,-385.0,0.000223,2]
[388691785,1759319461665,-786.0,0.000223,2]
[388691786,1759319461675,-806.89,0.00022305,2]
[388691787,1759319461684,-1680.0,0.00022305,2]
[388691788,1759319461694,-250.0,0.00022315,2]
[388691789,1759319461703,-915.52320052,0.00022335,2]
[388691790,1759319461712,-177.5744482,0.00022365,2]
[388691791,1759319461722,-168.0,0.00022392,2]
[388691792,1759319461732,-1645.47334133,0.00022395,2]
[388691793,1759319461741,-168.0,0.0002241,2]
[388691794,1759319461751,-150.0,0.00022442,2]
[388691795,1759319461761,-237.72572481,0.00022444,2]
[388691796,1759319461770,-311.68483919,0.00022446,2]
[388691797,1759319461780,-385.64395357,0.00022448,2]
[388691798,1759319461789,-459.60306796,0.0002245,2]
[388691799,1759319461799,-533.56218234,0.00022451,2]
[388691800,1759319461808,-607.52129673,0.00022453,2]
[388691801,1759319461818,-681.48041111,0.00022455,2]
[388691802,1759319461827,-300.0,0.00022464,2]
[388691803,1759319461836,-666.0,0.00022464,2]
[388691804,1759319461846,-1000.0,0.00022464,2]
[388691805,1759319461856,-1000.0,0.00022464,2]
[388691806,1759319461865,-500.0,0.00022465,5]
[388691807,1759319461874,-500.0,0.00022465,2]
[388691808,1759319461883,-19825.8109784,0.00022465,2]
[388691809,1759319461893,-500.0,0.00022465,2]
[388691810,1759319461903,-500.0,0.00022465,2]
[388691811,1759319461915,-1140.49,0.00022465,2]
[388691812,1759319461924,-500.0,0.00022465,2]
[388691813,1759319461934,-500.0,0.00022465,2]
[388691814,1759319461943,-500.0,0.00022465,2]
[388691815,1759319461953,-300.0,0.00022465,2]
[388691816,1759319461967,-500.0,0.00022465,2]
[388691817,1759319461976,-500.0,0.00022465,2]
[388691818,1759319461985,-500.0,0.00022465,2]
[388691819,1759319461995,-500.0,0.00022465,2]
[388691820,1759319462004,-500.0,0.00022465,2]
[388691821,1759319462013,-605.8,0.00022465,2]
[388691822,1759319462023,-1370.39,0.00022465,2]
[388691823,1759319462032,-563.91,0.00022465,2]
[388691824,1759319462041,-500.0,0.00022465,2]
[388691825,1759319462051,-784.19,0.00022465,2]
[388691826,1759319462061,-500.0,0.00022465,2]
[388691827,1759319462073,-500.0,0.00022465,2]
[388691828,1759319462083,-500.0,0.00022465,2]
[388691829,1759319462093,-500.0,0.00022465,2]
[388691830,1759319462103,-500.0,0.00022465,2]
[388691831,1759319462112,-704.22,0.00022465,2]
[388691832,1759319462122,-606.69,0.00022465,2]
[388691833,1759319462136,-500.0,0.00022465,2]
[388691834,1759319462145,-500.0,0.00022465,2]
[388691835,1759319462154,-602.79,0.00022465,2]
[388691836,1759319462165,-500.0,0.00022465,2]
[388691837,1759319462174,-500.0,0.00022465,2]
[388691838,1759319462184,-500.0,0.00022465,2]
[388691839,1759319462195,-500.0,0.00022465,2]
[388691840,1759319462206,-668.02,0.00022465,2]
[388691841,1759319462215,-547.24,0.00022465,2]
[388691842,1759319462224,-500.0,0.00022465,2]
[388691843,1759319462234,-500.0,0.00022465,2]
[388691844,1759319462243,-500.0,0.00022465,2]
[388691845,1759319462252,-1199.86,0.00022465,2]
[388691846,1759319462261,-500.0,0.00022465,2]
[388691847,1759319462270,-500.0,0.00022465,2]
[388691848,1759319462278,-500.0,0.00022465,2]
[388691849,1759319462287,-500.0,0.00022465,2]
[388691850,1759319462296,-500.0,0.00022465,2]
[388691851,1759319462305,-500.0,0.00022465,2]
[388691852,1759319462315,-828.3,0.00022465,2]
[388691853,1759319462325,-558.61990149,0.00022465,2]
[388691854,1759319462335,-500.0,0.00022465,2]
[388691855,1759319462344,-500.0,0.00022465,2]
[388691856,1759319462353,-568.26,0.00022465,2]
[388691857,1759319462362,-500.0,0.00022465,2]
[388691858,1759319462372,-500.0,0.00022465,2]
[388691859,1759319462382,-891.51,0.00022465,2]
[388691860,1759319462391,-500.0,0.00022465,2]
[388691861,1759319462400,-500.0,0.00022465,2]
[388691862,1759319462409,-500.0,0.00022465,2]
[388691863,1759319462418,-602.64,0.00022465,2]
[388691864,1759319462428,-500.0,0.00022465,2]
[388691865,1759319462438,-500.0,0.00022465,2]
[388691866,1759319462447,-1716.63,0.00022465,2]
[388691867,1759319462457,-500.0,0.00022465,2]
[388691868,1759319462466,-500.0,0.00022465,2]
[388691869,1759319462475,-500.0,0.00022465,2]
[388691870,1759319462485,-503.25,0.00022465,2]
[388691871,1759319462494,-1373.07,0.00022465,2]
[388691872,1759319462502,-978.02,0.00022465,2]
[388691873,1759319462512,-500.0,0.00022465,2]
[388691874,1759319462521,-500.0,0.00022465,2]
[388691875,1759319462530,-500.0,0.00022465,2]
[388691876,1759319462539,-500.0,0.00022465,2]
[388691877,1759319462549,-2141.7,0.00022465,2]
[388691878,1759319462558,-500.0,0.00022465,2]
[388691879,1759319462568,-500.0,0.00022465,2]
[388691880,1759319462577,-500.0,0.00022465,2]
[388691881,1759319462587,-500.0,0.00022465,2]
[388691882,1759319462597,-549.2,0.00022465,2]
[388691883,1759319462606,-500.0,0.00022465,2]
[388691884,1759319462616,-676.02,0.00022465,2]
[388691885,1759319462625,-1109.16,0.00022465,2]
[388691886,1759319462634,-500.0,0.00022465,2]
[388691887,1759319462653,-500.0,0.00022465,2]
[388691888,1759319462663,-562.59,0.00022465,2]
[388691889,1759319462672,-887.6,0.00022465,2]
[388691890,1759319462682,-1479.58,0.00022465,2]
[388691891,1759319462691,-500.0,0.00022465,2]
[388691892,1759319462700,-500.0,0.00022465,2]
[388691893,1759319462709,-500.0,0.00022465,2]
[388691894,1759319462719,-500.0,0.00022465,2]
[388691895,1759319462728,-500.0,0.00022465,2]
[388691896,1759319462737,-500.0,0.00022465,2]
[388691897,1759319462746,-500.0,0.00022465,2]
[388691898,1759319462755,-2061.99,0.00022465,2]
[388691899,1759319462765,-500.0,0.00022465,2]
[388691900,1759319462774,-1352.09,0.00022465,2]
[388691901,1759319462783,-500.0,0.00022465,2]
[388691902,1759319462792,-1450.88,0.00022465,2]
[388691903,1759319462802,-1011.72,0.00022465,2]
[388691904,1759319462811,-500.0,0.00022465,2]
[388691905,1759319462821,-735.89,0.00022465,2]
[388691906,1759319462830,-500.0,0.00022465,2]
[388691907,1759319462840,-1733.59,0.00022465,2]
[388691908,1759319462849,-500.0,0.00022465,2]
[388691909,1759319462859,-500.0,0.00022465,2]
[388691910,1759319462868,-665.73,0.00022465,2]
[388691911,1759319462878,-418.42,0.00022465,2]
[388691912,1759319462887,-500.0,0.00022465,2]
[388691913,1759319462896,-1041.89,0.00022465,2]
[388691914,1759319462905,-589.54351498,0.00022465,2]
[388691915,1759319462915,-294.65483283,0.00022465,2]
[388691916,1759319462925,-1297.02,0.00022465,2]
[388691917,1759319462935,-500.0,0.00022465,2]
[388691918,1759319462944,-500.0,0.00022465,2]
[388691919,1759319462954,-1617.02,0.00022465,2]
[388691920,1759319462963,-500.0,0.00022465,2]
[388691921,1759319462974,-500.0,0.00022465,2]
[388691922,1759319462984,-500.0,0.00022465,2]
[388691923,1759319462994,-500.0,0.00022465,2]
[388691924,1759319463005,-500.0,0.00022465,2]
[388691925,1759319463014,-500.0,0.00022465,2]
[388691926,1759319463024,-500.0,0.00022465,2]
[388691927,1759319463033,-500.0,0.00022465,2]
[388691928,1759319463042,-500.0,0.00022465,2]
[388691929,1759319463052,-500.0,0.00022465,2]
[388691930,1759319463061,-500.0,0.00022465,2]
[388691931,1759319463070,-931.99,0.00022465,2]
[388691932,1759319463079,-1571.13,0.00022465,2]
[388691933,1759319463088,-1874.73,0.00022465,2]
[388691934,1759319463097,-500.0,0.00022465,2]
[388691935,1759319463107,-1071.97,0.00022465,2]
[388691936,1759319463116,-2562.15,0.00022465,2]
[388691937,1759319463127,-993.45,0.00022465,2]
[388691938,1759319463138,-500.0,0.00022465,2]
[388691939,1759319463148,-500.0,0.00022465,2]
[388691940,1759319463157,-500.0,0.00022465,2]
[388691941,1759319463166,-1017.01,0.00022465,2]
[388691942,1759319463175,-500.0,0.00022465,2]
[388691943,1759319463185,-500.0,0.00022465,2]
[388691944,1759319463195,-869.59,0.00022465,2]
[388691945,1759319463204,-500.0,0.00022465,2]
[388691946,1759319463214,-1586.65,0.00022465,2]
[388691947,1759319463223,-500.0,0.00022465,2]
[388691948,1759319463232,-1137.0,0.00022465,2]
[388691949,1759319463242,-500.0,0.00022465,2]
[388691950,1759319463255,-1789.68,0.00022465,2]
[388691951,1759319463265,-2812.52,0.00022465,2]
[388691952,1759319463275,-1268.54,0.00022465,2]
[388691953,1759319463284,-521.26,0.00022465,2]
[388691954,1759319463294,-654.78,0.00022465,2]
[388691955,1759319463303,-500.0,0.00022465,2]
[388691956,1759319463313,-3110.7,0.00022465,2]
[388691957,1759319463322,-500.0,0.00022465,2]
[388691958,1759319463332,-308.22,0.00022465,2]
[388691959,1759319463341,-500.0,0.00022465,2]
[388691960,1759319463351,-966.57,0.00022465,2]
[388691961,1759319463361,-1640.65,0.00022465,2]
[388691962,1759319463370,-500.0,0.00022465,2]
[388691963,1759319463380,-604.39,0.00022465,2]
[388691964,1759319463389,-1992.57,0.00022465,2]
[388691965,1759319463399,-500.0,0.00022465,2]
[388691966,1759319463409,-592.25,0.00022465,2]
[388691967,1759319463418,-500.0,0.00022465,2]
[388691968,1759319463428,-500.0,0.00022465,2]
[388691969,1759319463438,-500.0,0.00022465,2]
[388691970,1759319463447,-2469.75,0.00022465,2]
[388691971,1759319463457,-500.0,0.00022465,2]
[388691972,1759319463466,-500.0,0.00022465,2]
[388691973,1759319463476,-1963.18,0.00022465,2]
[388691974,1759319463485,-1180.94,0.00022465,2]
[388691975,1759319463495,-829.27,0.00022465,2]
[388691976,1759319463504,-500.0,0.00022465,2]
[388691977,1759319463514,-992.64,0.00022465,2]
[388691978,1759319463524,-2083.91,0.00022465,2]
[388691979,1759319463534,-500.0,0.00022465,2]
[388691980,1759319463544,-569.94,0.00022465,2]
[388691981,1759319463554,-500.0,0.00022465,2]
[388691982,1759319463564,-1504.59,0.00022465,2]
[388691983,1759319463573,-500.0,0.00022465,2]
[388691984,1759319463582,-1770.74,0.00022465,2]
[388691985,1759319463592,-536.24,0.00022465,2]
[388691986,1759319463602,-500.0,0.00022465,2]
[388691987,1759319463612,-532.64,0.00022465,2]
[388691988,1759319463621,-3446.11,0.00022465,2]
[388691989,1759319463630,-654.38,0.00022465,2]
[388691990,1759319463640,-500.0,0.00022465,2]
[388691991,1759319463650,-2018.68,0.00022465,2]
[388691992,1759319463660,-500.0,0.00022465,2]
[388691993,1759319463669,-1708.78,0.00022465,2]
[388691994,1759319463680,-500.0,0.00022465,2]
[388691995,1759319463689,-699.77,0.00022465,2]
[388691996,1759319463699,-509.62,0.00022465,2]
[388691997,1759319463709,-801.9,0.00022465,2]
[388691998,1759319463718,-1128.15,0.00022465,2]
[388691999,1759319463727,-1995.04,0.00022465,2]
[388692000,1759319463736,-1756.13,0.00022465,2]
[388692001,1759319463745,-2593.93,0.00022465,2]
[388692002,1759319463755,-1701.5,0.00022465,2]
[388692003,1759319463764,-500.0,0.00022465,2]
[388692004,1759319463773,-1001.94,0.00022465,2]
[388692005,1759319463782,-500.0,0.00022465,2]
[388692006,1759319463792,-2688.69,0.00022465,2]
[388692007,1759319463801,-3010.11,0.00022465,2]
[388692008,1759319463811,-2927.04,0.00022465,2]
[388692009,1759319463820,-500.0,0.00022465,2]
[388692010,1759319463829,-500.0,0.00022465,2]
[388692011,1759319463839,-2480.54,0.00022465,2]
[388692012,1759319463848,-500.0,0.00022465,2]
[388692013,1759319463858,-738.62,0.00022465,2]
[388692014,1759319463872,-531.94471787,0.00022465,2]
[388692015,1759319463882,-5198.48,0.00022465,2]
[388692016,1759319463892,-1205.23,0.00022465,2]
[388692017,1759319463901,-2076.48,0.00022465,2]
[388692018,1759319463911,-500.0,0.00022465,2]
[388692019,1759319463920,-1800.49,0.00022465,2]
[388692020,1759319463930,-1363.92,0.00022465,2]
[388692021,1759319463940,-906.73,0.00022465,2]
[388692022,1759319463949,-1612.52,0.00022465,2]
[388692023,1759319463959,-500.0,0.00022465,2]
[388692024,1759319463968,-2066.96,0.00022465,2]
[388692025,1759319463978,-2697.42,0.00022465,2]
[388692026,1759319463988,-487.0512286,0.00022465,2]
[388692027,1759319463997,-1642.02,0.00022465,2]
[388692028,1759319464007,-1841.34,0.00022465,2]
[388692029,1759319464017,-500.0,0.00022465,2]
[388692030,1759319464027,-500.0,0.00022465,2]
[388692031,1759319464037,-500.0,0.00022465,2]
[388692032,1759319464047,-500.0,0.00022465,2]
[388692033,1759319464057,-2712.16,0.00022465,2]
[388692034,1759319464069,-2424.64,0.00022465,2]
[388692035,1759319464080,-1522.9,0.00022465,2]
[388692036,1759319464090,-944.04,0.00022465,2]
[388692037,1759319464099,-1334.22,0.00022465,2]
[388692038,1759319464108,-682.21,0.00022465,2]
[388692039,1759319464117,-1853.79,0.00022465,2]
[388692040,1759319464131,-531.63,0.00022465,2]
[388692041,1759319464141,-615.6666333,0.00022465,2]
[388692042,1759319464152,-588.34,0.00022465,2]
[388692043,1759319464162,-2000.77,0.00022465,2]
[388692044,1759319464171,-2301.12,0.00022465,2]
[388692045,1759319464182,-2042.88,0.00022465,2]
[388692046,1759319464192,-824.34,0.00022465,2]
[388692047,1759319464201,-2002.53,0.00022465,2]
[388692048,1759319464211,-500.0,0.00022465,2]
[388692049,1759319464220,-1723.07,0.00022465,2]
[388692050,1759319464229,-151.00000032,0.00022465,7]
[388692051,1759319464240,-500.0,0.00022465,2]
[388692052,1759319464250,-1795.18,0.00022465,2]
[388692053,1759319464261,-500.0,0.00022465,2]
[388692054,1759319464270,-1879.83,0.00022465,2]
[388692055,1759319464279,-894.85,0.00022465,2]
[388692056,1759319464289,-620.47395719,0.00022465,2]
[388692057,1759319464300,-2706.82,0.00022465,2]
[388692058,1759319464309,-500.0,0.00022465,2]
[388692059,1759319464319,-345.8648733,0.00022465,2]
[388692060,1759319464328,-868.56,0.00022465,2]
[388692061,1759319464337,-2303.15,0.00022465,2]
[388692062,1759319464347,-500.0,0.00022465,2]
[388692063,1759319464356,-500.0,0.00022465,2]
[388692064,1759319464365,-500.0,0.00022465,2]
[388692065,1759319464375,-2036.18,0.00022465,2]
[388692066,1759319464384,-2226.72,0.00022465,2]
[388692067,1759319464393,-500.0,0.00022465,2]
[388692068,1759319464403,-1822.08,0.00022465,2]
[388692069,1759319464412,-1936.75,0.00022465,2]
[388692070,1759319464422,-2763.12,0.00022465,2]
[388692071,1759319464433,-500.0,0.00022465,2]
[388692072,1759319464442,-500.0,0.00022465,2]
[388692073,1759319464452,-1596.94,0.00022465,2]
[388692074,1759319464462,-2052.59,0.00022465,2]
[388692075,1759319464472,-773.11,0.00022465,2]
[388692076,1759319464482,-969.51,0.00022465,2]
[388692077,1759319464492,-1504.56,0.00022465,2]
[388692078,1759319464502,-2618.43,0.00022465,2]
[388692079,1759319464511,-563.91,0.00022465,2]
[388692080,1759319464521,-2487.73,0.00022465,2]
[388692081,1759319464531,-588.8,0.00022465,2]
[388692082,1759319464540,-689.99,0.00022465,2]
[388692083,1759319464550,-1644.11,0.00022465,2]
[388692084,1759319464559,-2065.32,0.00022465,2]
[388692085,1759319464569,-1978.08,0.00022465,2]
[388692086,1759319464579,-2614.19,0.00022465,2]
[388692087,1759319464588,-500.0,0.00022465,2]
[388692088,1759319464598,-500.0,0.00022465,2]
[388692089,1759319464608,-1633.32,0.00022465,2]
[388692090,1759319464617,-2923.59,0.00022465,2]
[388692091,1759319464626,-1241.37,0.00022465,2]
[388692092,1759319464864,-2334.15,0.00022465,2]
[388692093,1759319464874,-500.0,0.00022465,2]
[388692094,1759319464884,-508.99,0.00022465,2]
[388692095,1759319464893,-991.83,0.00022465,2]
[388692096,1759319464902,-1279.2,0.00022465,2]
[388692097,1759319464912,-813.5,0.00022465,2]
[388692098,1759319464921,-2179.4,0.00022465,2]
[388692099,1759319464931,-500.0,0.00022465,2]
[388692100,1759319464940,-1385.04,0.00022465,2]
[388692101,1759319464950,-500.0,0.00022465,2]
[388692102,1759319464959,-500.0,0.00022465,2]
[388692103,1759319464969,-522.05,0.00022465,2]
[388692104,1759319464979,-500.0,0.00022465,2]
[388692105,1759319464988,-2421.81,0.00022465,2]
[388692106,1759319464998,-1458.67,0.00022465,2]
[388692107,1759319465009,-1238.61,0.00022465,2]
[388692108,1759319465018,-2562.26,0.00022465,2]
[388692109,1759319465027,-500.0,0.00022465,2]
[388692110,1759319465037,-500.0,0.00022465,2]
[388692111,1759319465046,-500.0,0.00022465,2]
[388692112,1759319465055,-815.74,0.00022465,2]
[388692113,1759319465065,-1101.19,0.00022465,2]
[388692114,1759319465075,-611.17,0.00022465,2]
[388692115,1759319465084,-1073.61,0.00022465,2]
[388692116,1759319465093,-1089.37,0.00022465,2]
[388692117,1759319465102,-504.66,0.00022465,2]
[388692118,1759319465111,-1594.8,0.00022465,2]
[388692119,1759319465124,-500.0,0.00022465,2]
[388692120,1759319465135,-607.9,0.00022465,2]
[388692121,1759319465144,-1536.68,0.00022465,2]
[388692122,1759319465153,-496.8890124,0.00022465,2]
[388692123,1759319465163,-1311.94,0.00022465,2]
[388692124,1759319465174,-1068.09,0.00022465,2]
[388692125,1759319465184,-1915.85,0.00022465,2]
[388692126,1759319465194,-1915.25,0.00022465,2]
[388692127,1759319465205,-500.0,0.00022465,2]
[388692128,1759319465214,-1360.18,0.00022465,2]
[388692129,1759319465223,-629.2,0.00022465,2]
[388692130,1759319465233,-1465.21,0.00022465,2]
[388692131,1759319465242,-2204.19,0.00022465,2]
[388692132,1759319465251,-1768.02,0.00022465,2]
[388692133,1759319465260,-2172.57,0.00022465,2]
[388692134,1759319465269,-500.0,0.00022465,2]